[Event "Titled Tuesday Blitz October 31 Late 2023"]
[White "Nihal Sarin"]
[Black "jactorres"]
[WhiteFideId "25092340"]
[WhiteElo "3127"]
[BlackElo "2526"]
[Result "1-0"]
[Round "1"]
[TimeControl "180+1"]
[Date "2023.10.31"]
[WhiteClock "0:02:56"]
[BlackClock "0:01:42"]
[Board "1"]

1. d4 {[%clk 0:03:00]}  Nf6 {[%clk 0:02:59]} 2. Nf3 {[%clk 0:03:01]}  e6 {[%clk 0:02:57]} 3. c4 {[%clk 0:03:02]}  d5 {[%clk 0:02:57]} 4. Nc3 {[%clk 0:03:01]}  Be7 {[%clk 0:02:57]} 5. Bf4 {[%clk 0:03:01]}  O-O {[%clk 0:02:54]} 6. e3 {[%clk 0:03:01]}  dxc4 {[%clk 0:02:52]} 7. Bxc4 {[%clk 0:03:01]}  c5 {[%clk 0:02:52]} 8. O-O {[%clk 0:03:02]}  cxd4 {[%clk 0:02:53]} 9. Nxd4 {[%clk 0:03:02]}  a6 {[%clk 0:02:46]} 10. Qe2 {[%clk 0:03:01]}  b5 {[%clk 0:02:45]} 11. Bb3 {[%clk 0:03:02]}  Qb6 {[%clk 0:02:36]} 12. a4 {[%clk 0:03:02]}  b4 {[%clk 0:02:33]} 13. a5 {[%clk 0:03:02]}  Qb7 {[%clk 0:02:30]} 14. Na4 {[%clk 0:03:02]}  Nbd7 {[%clk 0:02:20]} 15. Rac1 {[%clk 0:03:02]}  Nd5 {[%clk 0:02:19]} 16. Nc6 {[%clk 0:03:01]}  Bf6 {[%clk 0:02:08]} 17. Bxd5 {[%clk 0:03:00]}  exd5 {[%clk 0:02:09]} 18. Bd6 {[%clk 0:03:00]}  Re8 {[%clk 0:02:08]} 19. Rfd1 {[%clk 0:03:00]}  d4 {[%clk 0:02:03]} 20. Nxd4 {[%clk 0:02:59]}  Ne5 {[%clk 0:01:57]} 21. Nb6 {[%clk 0:02:55]}  Ra7 {[%clk 0:01:50]} 22. Bxe5 {[%clk 0:02:55]}  Bxe5 {[%clk 0:01:42]} 23. Nc6 {[%clk 0:02:56]} 1-0


[Site "https://www.chess.com"]

[Event "Titled Tuesday Blitz October 31 Late 2023"]
[White "D`Arruda, Ricardo D."]
[Black "Martinez Alcantara, Jose Eduardo"]
[WhiteFideId "100692"]
[BlackFideId "3805662"]
[WhiteElo "2526"]
[BlackElo "3117"]
[Result "0-1"]
[Round "1"]
[TimeControl "180+1"]
[Date "2023.10.31"]
[WhiteClock "0:00:19"]
[BlackClock "0:01:13"]
[Board "2"]

1. d4 {[%clk 0:02:59]}  Nf6 {[%clk 0:02:59]} 2. Nf3 {[%clk 0:02:59]}  e6 {[%clk 0:03:00]} 3. c4 {[%clk 0:02:58]}  Bb4+ {[%clk 0:03:00]} 4. Nbd2 {[%clk 0:02:58]}  O-O {[%clk 0:03:00]} 5. a3 {[%clk 0:02:58]}  Be7 {[%clk 0:03:01]} 6. e4 {[%clk 0:02:58]}  d6 {[%clk 0:03:02]} 7. Bd3 {[%clk 0:02:57]}  c5 {[%clk 0:03:02]} 8. O-O {[%clk 0:02:56]}  cxd4 {[%clk 0:03:03]} 9. Nxd4 {[%clk 0:02:55]}  a6 {[%clk 0:03:03]} 10. b4 {[%clk 0:02:53]}  b6 {[%clk 0:03:04]} 11. Bb2 {[%clk 0:02:52]}  Bb7 {[%clk 0:03:04]} 12. Qe2 {[%clk 0:02:50]}  Nbd7 {[%clk 0:03:04]} 13. Rac1 {[%clk 0:02:48]}  Re8 {[%clk 0:03:05]} 14. Rfe1 {[%clk 0:02:46]}  Bf8 {[%clk 0:03:05]} 15. Qf1 {[%clk 0:02:38]}  g6 {[%clk 0:03:00]} 16. f3 {[%clk 0:02:37]}  Bh6 {[%clk 0:02:58]} 17. Qf2 {[%clk 0:02:36]}  Qc7 {[%clk 0:02:58]} 18. Rc2 {[%clk 0:02:34]}  Rac8 {[%clk 0:02:58]} 19. Nf1 {[%clk 0:02:33]}  Ne5 {[%clk 0:02:57]} 20. Be2 {[%clk 0:02:30]}  Bg7 {[%clk 0:02:57]} 21. Rec1 {[%clk 0:02:28]}  Qb8 {[%clk 0:02:57]} 22. Ne3 {[%clk 0:02:27]}  Ned7 {[%clk 0:02:57]} 23. Bf1 {[%clk 0:02:26]}  h5 {[%clk 0:02:56]} 24. h3 {[%clk 0:02:25]}  Bh6 {[%clk 0:02:56]} 25. Rd1 {[%clk 0:02:24]}  Qc7 {[%clk 0:02:55]} 26. Kh1 {[%clk 0:02:23]}  Bg7 {[%clk 0:02:55]} 27. g4 {[%clk 0:02:22]}  Ne5 {[%clk 0:02:52]} 28. g5 {[%clk 0:02:20]}  Nfd7 {[%clk 0:02:47]} 29. Bg2 {[%clk 0:02:17]}  Nf8 {[%clk 0:02:41]} 30. f4 {[%clk 0:02:16]}  Ned7 {[%clk 0:02:42]} 31. Bf3 {[%clk 0:02:08]}  Qd8 {[%clk 0:02:42]} 32. Qg2 {[%clk 0:02:08]}  e5 {[%clk 0:02:41]} 33. Ne2 {[%clk 0:02:02]}  exf4 {[%clk 0:02:39]} 34. Nxf4 {[%clk 0:02:02]}  Bxb2 {[%clk 0:02:38]} 35. Rxb2 {[%clk 0:02:01]}  Ne5 {[%clk 0:02:38]} 36. Nfd5 {[%clk 0:01:45]}  Nfd7 {[%clk 0:02:35]} 37. Rc2 {[%clk 0:01:40]}  Bxd5 {[%clk 0:02:30]} 38. Nxd5 {[%clk 0:01:29]}  Rxc4 {[%clk 0:02:27]} 39. Rxc4 {[%clk 0:01:26]}  Nxc4 {[%clk 0:02:28]} 40. Be2 {[%clk 0:01:25]}  b5 {[%clk 0:02:22]} 41. a4 {[%clk 0:01:20]}  Re5 {[%clk 0:02:17]} 42. h4 {[%clk 0:01:18]}  Nb2 {[%clk 0:02:07]} 43. Ra1 {[%clk 0:00:50]}  Nxa4 {[%clk 0:02:06]} 44. Qf3 {[%clk 0:00:43]}  Nab6 {[%clk 0:01:59]} 45. Rxa6 {[%clk 0:00:41]}  Nxd5 {[%clk 0:01:59]} 46. exd5 {[%clk 0:00:41]}  Qb8 {[%clk 0:01:43]} 47. Ra5 {[%clk 0:00:39]}  Qc7 {[%clk 0:01:41]} 48. Bxb5 {[%clk 0:00:34]}  Qc1+ {[%clk 0:01:41]} 49. Kg2 {[%clk 0:00:33]}  Qd2+ {[%clk 0:01:38]} 50. Kg1 {[%clk 0:00:32]}  Re1+ {[%clk 0:01:32]} 51. Bf1 {[%clk 0:00:30]}  Ne5 {[%clk 0:01:19]} 52. Ra8+ {[%clk 0:00:27]}  Kh7 {[%clk 0:01:19]} 53. Qf6 {[%clk 0:00:27]}  Qd4+ {[%clk 0:01:17]} 54. Kg2 {[%clk 0:00:26]}  Qxd5+ {[%clk 0:01:15]} 55. Kf2 {[%clk 0:00:19]}  Ng4+ {[%clk 0:01:13]} 0-1


[Site "https://www.chess.com"]

[Event "Titled Tuesday Blitz October 31 Late 2023"]
[White "Pranav, V"]
[Black "subham777"]
[WhiteFideId "25060783"]
[WhiteElo "3045"]
[BlackElo "2520"]
[Result "1-0"]
[Round "1"]
[TimeControl "180+1"]
[Date "2023.10.31"]
[WhiteClock "0:01:41"]
[BlackClock "0:00:00"]
[Board "7"]

1. e4 {[%clk 0:03:00]}  e6 {[%clk 0:02:59]} 2. d4 {[%clk 0:03:00]}  d5 {[%clk 0:02:54]} 3. Nc3 {[%clk 0:03:00]}  Nf6 {[%clk 0:02:53]} 4. Bg5 {[%clk 0:02:57]}  Be7 {[%clk 0:02:53]} 5. e5 {[%clk 0:02:56]}  Nfd7 {[%clk 0:01:58]} 6. Bxe7 {[%clk 0:02:54]}  Qxe7 {[%clk 0:01:59]} 7. f4 {[%clk 0:02:55]}  a6 {[%clk 0:01:59]} 8. Qg4 {[%clk 0:02:54]}  O-O {[%clk 0:01:57]} 9. Bd3 {[%clk 0:02:53]}  f5 {[%clk 0:01:56]} 10. Qh3 {[%clk 0:02:52]}  c5 {[%clk 0:01:54]} 11. Nf3 {[%clk 0:02:51]}  Nc6 {[%clk 0:01:54]} 12. O-O-O {[%clk 0:02:47]}  c4 {[%clk 0:01:51]} 13. Bf1 {[%clk 0:02:44]}  b5 {[%clk 0:01:49]} 14. g4 {[%clk 0:02:44]}  fxg4 {[%clk 0:01:46]} 15. Qxg4 {[%clk 0:02:44]}  b4 {[%clk 0:01:40]} 16. Na4 {[%clk 0:02:43]}  Qf7 {[%clk 0:01:24]} 17. Ng5 {[%clk 0:02:41]}  Qxf4+ {[%clk 0:01:19]} 18. Qxf4 {[%clk 0:02:42]}  Rxf4 {[%clk 0:01:19]} 19. Nxe6 {[%clk 0:02:43]}  Rf2 {[%clk 0:01:18]} 20. Nc7 {[%clk 0:02:43]}  Rb8 {[%clk 0:01:09]} 21. Nxd5 {[%clk 0:02:29]}  c3 {[%clk 0:00:46]} 22. Bc4 {[%clk 0:02:25]}  Na5 {[%clk 0:00:34]} 23. Rhf1 {[%clk 0:02:07]}  Rxf1 {[%clk 0:00:24]} 24. Bxf1 {[%clk 0:02:08]}  Bb7 {[%clk 0:00:20]} 25. Nxb4 {[%clk 0:02:07]}  cxb2+ {[%clk 0:00:19]} 26. Nxb2 {[%clk 0:02:08]}  Bf3 {[%clk 0:00:18]} 27. Rd3 {[%clk 0:01:58]}  Rxb4 {[%clk 0:00:14]} 28. Rxf3 {[%clk 0:01:56]}  Rxd4 {[%clk 0:00:15]} 29. e6 {[%clk 0:01:56]}  Nf6 {[%clk 0:00:15]} 30. Bxa6 {[%clk 0:01:51]}  Re4 {[%clk 0:00:13]} 31. Bc8 {[%clk 0:01:47]}  Kf8 {[%clk 0:00:12]} 32. Rc3 {[%clk 0:01:42]}  Re5 {[%clk 0:00:09]} 33. Rc7 {[%clk 0:01:42]}  Rf5 {[%clk 0:00:00]} 34. e7+ {[%clk 0:01:41]} 1-0


[Site "https://www.chess.com"]

[Event "Titled Tuesday Blitz October 31 Late 2023"]
[White "Hnydiuk, Aleksander"]
[Black "Elsa167"]
[WhiteFideId "1109057"]
[WhiteElo "2512"]
[BlackElo "2965"]
[Result "0-1"]
[Round "1"]
[TimeControl "180+1"]
[Date "2023.10.31"]
[WhiteClock "0:01:14"]
[BlackClock "0:01:31"]
[Board "12"]

1. d4 {[%clk 0:02:56]}  Nf6 {[%clk 0:03:00]} 2. Nf3 {[%clk 0:02:55]}  g6 {[%clk 0:03:00]} 3. Nbd2 {[%clk 0:02:49]}  Bg7 {[%clk 0:03:00]} 4. e4 {[%clk 0:02:49]}  d6 {[%clk 0:03:00]} 5. Bb5+ {[%clk 0:02:49]}  c6 {[%clk 0:03:00]} 6. Bd3 {[%clk 0:02:49]}  O-O {[%clk 0:03:00]} 7. O-O {[%clk 0:02:49]}  a5 {[%clk 0:02:57]} 8. a4 {[%clk 0:02:46]}  Na6 {[%clk 0:02:57]} 9. c3 {[%clk 0:02:46]}  e5 {[%clk 0:02:54]} 10. Re1 {[%clk 0:02:38]}  exd4 {[%clk 0:02:51]} 11. cxd4 {[%clk 0:02:37]}  Nb4 {[%clk 0:02:51]} 12. Bf1 {[%clk 0:02:30]}  Re8 {[%clk 0:02:48]} 13. b3 {[%clk 0:02:23]}  Bg4 {[%clk 0:02:20]} 14. h3 {[%clk 0:01:59]}  Bxf3 {[%clk 0:02:20]} 15. gxf3 {[%clk 0:02:00]}  Nh5 {[%clk 0:02:16]} 16. Nc4 {[%clk 0:01:52]}  d5 {[%clk 0:02:06]} 17. Ne5 {[%clk 0:01:46]}  Qh4 {[%clk 0:01:44]} 18. Qd2 {[%clk 0:01:23]}  Rad8 {[%clk 0:01:36]} 19. Qg5 {[%clk 0:01:23]}  Qxg5+ {[%clk 0:01:33]} 20. Bxg5 {[%clk 0:01:14]}  f6 {[%clk 0:01:31]} 0-1


[Site "https://www.chess.com"]

[Event "Titled Tuesday Blitz October 31 Late 2023"]
[White "Bok, Benjamin"]
[Black "Korkmaz, Necmettin"]
[WhiteFideId "1017063"]
[BlackFideId "6303285"]
[WhiteElo "2954"]
[BlackElo "2504"]
[Result "1-0"]
[Round "1"]
[TimeControl "180+1"]
[Date "2023.10.31"]
[WhiteClock "0:01:51"]
[BlackClock "0:02:25"]
[Board "15"]

1. d4 {[%clk 0:03:00]}  d5 {[%clk 0:02:59]} 2. c4 {[%clk 0:02:59]}  c6 {[%clk 0:02:56]} 3. cxd5 {[%clk 0:02:59]}  cxd5 {[%clk 0:02:55]} 4. Nf3 {[%clk 0:03:00]}  Nf6 {[%clk 0:02:55]} 5. Nc3 {[%clk 0:03:00]}  Nc6 {[%clk 0:02:55]} 6. Bf4 {[%clk 0:02:59]}  a6 {[%clk 0:02:55]} 7. Rc1 {[%clk 0:02:57]}  Bf5 {[%clk 0:02:54]} 8. e3 {[%clk 0:02:57]}  Rc8 {[%clk 0:02:50]} 9. Be2 {[%clk 0:02:56]}  e6 {[%clk 0:02:50]} 10. O-O {[%clk 0:02:57]}  Bd6 {[%clk 0:02:49]} 11. Bxd6 {[%clk 0:02:57]}  Qxd6 {[%clk 0:02:49]} 12. Qb3 {[%clk 0:02:58]}  b5 {[%clk 0:02:45]} 13. a4 {[%clk 0:02:56]}  b4 {[%clk 0:02:44]} 14. Bxa6 {[%clk 0:02:42]}  Rb8 {[%clk 0:02:44]} 15. Nb5 {[%clk 0:02:27]}  Qd7 {[%clk 0:02:43]} 16. Ne5 {[%clk 0:02:09]}  Nxe5 {[%clk 0:02:42]} 17. dxe5 {[%clk 0:02:10]}  Ne4 {[%clk 0:02:40]} 18. Qxb4 {[%clk 0:02:03]}  Qe7 {[%clk 0:02:30]} 19. Nd6+ {[%clk 0:01:54]}  Qxd6 {[%clk 0:02:30]} 20. Bb5+ {[%clk 0:01:51]}  Qd7 {[%clk 0:02:25]} 1-0


[Site "https://www.chess.com"]

[Event "Titled Tuesday Blitz October 31 Late 2023"]
[White "Ilamparthi A R"]
[Black "The_Straightforward_Rook"]
[WhiteFideId "45015775"]
[WhiteElo "2943"]
[BlackElo "2501"]
[Result "1-0"]
[Round "1"]
[TimeControl "180+1"]
[Date "2023.10.31"]
[WhiteClock "0:00:14"]
[BlackClock "0:00:00"]
[Board "17"]

1. d4 {[%clk 0:03:00]}  Nf6 {[%clk 0:02:59]} 2. Nf3 {[%clk 0:03:00]}  e6 {[%clk 0:02:59]} 3. Bf4 {[%clk 0:02:59]}  d5 {[%clk 0:02:59]} 4. e3 {[%clk 0:02:58]}  Bd6 {[%clk 0:02:59]} 5. Ne5 {[%clk 0:02:57]}  O-O {[%clk 0:02:58]} 6. Bd3 {[%clk 0:02:54]}  c5 {[%clk 0:02:52]} 7. c3 {[%clk 0:02:54]}  Qc7 {[%clk 0:02:51]} 8. Nd2 {[%clk 0:02:46]}  Nbd7 {[%clk 0:02:51]} 9. Ndf3 {[%clk 0:02:45]}  c4 {[%clk 0:02:49]} 10. Bc2 {[%clk 0:02:43]}  b5 {[%clk 0:02:49]} 11. h4 {[%clk 0:02:37]}  a5 {[%clk 0:02:27]} 12. g4 {[%clk 0:02:34]}  b4 {[%clk 0:02:19]} 13. h5 {[%clk 0:02:14]}  Ne4 {[%clk 0:02:14]} 14. h6 {[%clk 0:02:02]}  g6 {[%clk 0:02:12]} 15. Nxd7 {[%clk 0:01:56]}  Bxd7 {[%clk 0:02:09]} 16. Bxd6 {[%clk 0:01:56]}  Qxd6 {[%clk 0:02:04]} 17. Bxe4 {[%clk 0:01:51]}  dxe4 {[%clk 0:02:05]} 18. Ne5 {[%clk 0:01:51]}  f6 {[%clk 0:02:02]} 19. Nxc4 {[%clk 0:01:44]}  Qa6 {[%clk 0:01:54]} 20. b3 {[%clk 0:01:39]}  bxc3 {[%clk 0:01:51]} 21. Rc1 {[%clk 0:01:37]}  a4 {[%clk 0:01:49]} 22. Rxc3 {[%clk 0:01:37]}  axb3 {[%clk 0:01:49]} 23. axb3 {[%clk 0:01:37]}  Rfc8 {[%clk 0:01:38]} 24. O-O {[%clk 0:01:32]}  Bb5 {[%clk 0:01:31]} 25. Qe2 {[%clk 0:01:31]}  Rc7 {[%clk 0:01:24]} 26. Rfc1 {[%clk 0:01:30]}  Rac8 {[%clk 0:01:24]} 27. g5 {[%clk 0:01:29]}  fxg5 {[%clk 0:01:20]} 28. Qg4 {[%clk 0:01:28]}  Bxc4 {[%clk 0:01:14]} 29. bxc4 {[%clk 0:01:20]}  Rxc4 {[%clk 0:01:13]} 30. Rxc4 {[%clk 0:01:20]}  Rxc4 {[%clk 0:01:14]} 31. Rb1 {[%clk 0:00:50]}  Qc6 {[%clk 0:00:47]} 32. Rb8+ {[%clk 0:00:38]}  Kf7 {[%clk 0:00:47]} 33. Qxg5 {[%clk 0:00:38]}  Rc1+ {[%clk 0:00:37]} 34. Kg2 {[%clk 0:00:38]}  Qd5 {[%clk 0:00:37]} 35. Rb7+ {[%clk 0:00:26]}  Qxb7 {[%clk 0:00:32]} 36. Qe5 {[%clk 0:00:25]}  Qd5 {[%clk 0:00:27]} 37. Qg7+ {[%clk 0:00:25]}  Ke8 {[%clk 0:00:26]} 38. Qg8+ {[%clk 0:00:24]}  Kd7 {[%clk 0:00:24]} 39. Qxh7+ {[%clk 0:00:25]}  Kd6 {[%clk 0:00:20]} 40. Qxg6 {[%clk 0:00:25]}  Qf5 {[%clk 0:00:19]} 41. Qg3+ {[%clk 0:00:22]}  Kd5 {[%clk 0:00:18]} 42. h7 {[%clk 0:00:20]}  Rc8 {[%clk 0:00:19]} 43. Qh4 {[%clk 0:00:14]}  Qg6+ {[%clk 0:00:16]} 44. Kf1 {[%clk 0:00:12]}  Qg7 {[%clk 0:00:16]} 45. Qh5+ {[%clk 0:00:12]}  Kd6 {[%clk 0:00:16]} 46. Ke2 {[%clk 0:00:12]}  Rh8 {[%clk 0:00:15]} 47. Qc5+ {[%clk 0:00:12]}  Kd7 {[%clk 0:00:15]} 48. Qa7+ {[%clk 0:00:13]}  Kd6 {[%clk 0:00:15]} 49. Qxg7 {[%clk 0:00:14]}  Rxh7 {[%clk 0:00:00]} 50. Qxh7 {[%clk 0:00:14]} 1-0


[Site "https://www.chess.com"]

[Event "Titled Tuesday Blitz October 31 Late 2023"]
[White "Shohat, Yotam"]
[Black "Chigaev, Maksim"]
[WhiteFideId "2813955"]
[BlackFideId "4108116"]
[WhiteElo "2497"]
[BlackElo "2937"]
[Result "0-1"]
[Round "1"]
[TimeControl "180+1"]
[Date "2023.10.31"]
[WhiteClock "0:00:02"]
[BlackClock "0:00:08"]
[Board "18"]

1. e4 {[%clk 0:02:53]}  c5 {[%clk 0:02:54]} 2. Nf3 {[%clk 0:02:53]}  d6 {[%clk 0:02:50]} 3. d4 {[%clk 0:02:53]}  cxd4 {[%clk 0:02:50]} 4. Nxd4 {[%clk 0:02:54]}  Nf6 {[%clk 0:02:51]} 5. Nc3 {[%clk 0:02:54]}  a6 {[%clk 0:02:51]} 6. Be3 {[%clk 0:02:53]}  e6 {[%clk 0:02:46]} 7. a3 {[%clk 0:02:52]}  h5 {[%clk 0:02:44]} 8. Be2 {[%clk 0:02:49]}  Qc7 {[%clk 0:02:37]} 9. O-O {[%clk 0:02:30]}  Nbd7 {[%clk 0:02:33]} 10. f4 {[%clk 0:02:29]}  Be7 {[%clk 0:02:28]} 11. Kh1 {[%clk 0:02:28]}  b5 {[%clk 0:02:23]} 12. Bf3 {[%clk 0:02:22]}  Bb7 {[%clk 0:02:23]} 13. Qe1 {[%clk 0:02:08]}  h4 {[%clk 0:02:15]} 14. Rd1 {[%clk 0:01:55]}  g6 {[%clk 0:02:07]} 15. Bf2 {[%clk 0:01:45]}  h3 {[%clk 0:02:02]} 16. g4 {[%clk 0:01:18]}  e5 {[%clk 0:02:02]} 17. g5 {[%clk 0:01:18]}  Nh5 {[%clk 0:01:56]} 18. fxe5 {[%clk 0:01:11]}  Nxe5 {[%clk 0:01:51]} 19. Nd5 {[%clk 0:00:53]}  Bxd5 {[%clk 0:01:48]} 20. exd5 {[%clk 0:00:53]}  Nxf3 {[%clk 0:01:42]} 21. Nxf3 {[%clk 0:00:51]}  O-O {[%clk 0:01:29]} 22. c3 {[%clk 0:00:43]}  Rfe8 {[%clk 0:01:28]} 23. Qd2 {[%clk 0:00:43]}  Qd7 {[%clk 0:01:19]} 24. Bd4 {[%clk 0:00:35]}  Qg4 {[%clk 0:01:16]} 25. Qf2 {[%clk 0:00:29]}  Nf4 {[%clk 0:01:09]} 26. Qg3 {[%clk 0:00:27]}  Qxg3 {[%clk 0:01:04]} 27. hxg3 {[%clk 0:00:28]}  Nxd5 {[%clk 0:01:04]} 28. Kh2 {[%clk 0:00:24]}  Bf8 {[%clk 0:01:02]} 29. Kxh3 {[%clk 0:00:22]}  Ne3 {[%clk 0:01:03]} 30. Bxe3 {[%clk 0:00:19]}  Rxe3 {[%clk 0:01:03]} 31. Rde1 {[%clk 0:00:18]}  Rae8 {[%clk 0:01:02]} 32. Kg2 {[%clk 0:00:18]}  Re2+ {[%clk 0:00:51]} 33. Rxe2 {[%clk 0:00:18]}  Rxe2+ {[%clk 0:00:52]} 34. Rf2 {[%clk 0:00:18]}  Re4 {[%clk 0:00:52]} 35. Rd2 {[%clk 0:00:17]}  Be7 {[%clk 0:00:50]} 36. Kf2 {[%clk 0:00:18]}  Kf8 {[%clk 0:00:47]} 37. Re2 {[%clk 0:00:18]}  Re6 {[%clk 0:00:42]} 38. Rd2 {[%clk 0:00:12]}  Ke8 {[%clk 0:00:43]} 39. Nd4 {[%clk 0:00:09]}  Re4 {[%clk 0:00:39]} 40. Nf3 {[%clk 0:00:06]}  Re6 {[%clk 0:00:30]} 41. Nd4 {[%clk 0:00:05]}  Bxg5 {[%clk 0:00:31]} 42. Nxe6 {[%clk 0:00:04]}  Bxd2 {[%clk 0:00:31]} 43. Nc7+ {[%clk 0:00:05]}  Kd7 {[%clk 0:00:32]} 44. Nxa6 {[%clk 0:00:06]}  Bc1 {[%clk 0:00:32]} 45. b3 {[%clk 0:00:03]}  Bxa3 {[%clk 0:00:31]} 46. Kf3 {[%clk 0:00:01]}  d5 {[%clk 0:00:29]} 47. Ke3 {[%clk 0:00:01]}  Bd6 {[%clk 0:00:25]} 48. Kd4 {[%clk 0:00:01]}  Kc6 {[%clk 0:00:17]} 49. g4 {[%clk 0:00:02]}  f6 {[%clk 0:00:18]} 50. c4 {[%clk 0:00:01]}  dxc4 {[%clk 0:00:12]} 51. bxc4 {[%clk 0:00:02]}  Be5+ {[%clk 0:00:06]} 52. Kd3 {[%clk 0:00:01]}  Bd6 {[%clk 0:00:07]} 53. Kd4 {[%clk 0:00:01]}  Bg3 {[%clk 0:00:05]} 54. cxb5+ {[%clk 0:00:01]}  Kxb5 {[%clk 0:00:05]} 55. Nc5 {[%clk 0:00:01]}  Bf2+ {[%clk 0:00:06]} 56. Kd5 {[%clk 0:00:02]}  Bxc5 {[%clk 0:00:06]} 57. Ke6 {[%clk 0:00:03]}  g5 {[%clk 0:00:06]} 58. Kxf6 {[%clk 0:00:03]}  Be3 {[%clk 0:00:07]} 59. Kf5 {[%clk 0:00:02]}  Bf4 {[%clk 0:00:08]} 0-1


[Site "https://www.chess.com"]

[Event "Titled Tuesday Blitz October 31 Late 2023"]
[White "Cordova, Emilio"]
[Black "Reprintsev, Alexander"]
[WhiteFideId "3801497"]
[BlackFideId "14100541"]
[WhiteElo "2933"]
[BlackElo "2491"]
[Result "1/2-1/2"]
[Round "1"]
[TimeControl "180+1"]
[Date "2023.10.31"]
[WhiteClock "0:00:46"]
[BlackClock "0:01:39"]
[Board "21"]

1. d4 {[%clk 0:02:46]}  d5 {[%clk 0:02:58]} 2. Nf3 {[%clk 0:02:47]}  Nc6 {[%clk 0:02:57]} 3. c4 {[%clk 0:02:48]}  e5 {[%clk 0:02:57]} 4. Nc3 {[%clk 0:02:48]}  exd4 {[%clk 0:02:53]} 5. Nxd4 {[%clk 0:02:46]}  Nxd4 {[%clk 0:02:49]} 6. Qxd4 {[%clk 0:02:47]}  dxc4 {[%clk 0:02:50]} 7. Qxd8+ {[%clk 0:02:40]}  Kxd8 {[%clk 0:02:50]} 8. e4 {[%clk 0:02:39]}  Be6 {[%clk 0:02:48]} 9. Bf4 {[%clk 0:02:38]}  c6 {[%clk 0:02:48]} 10. O-O-O+ {[%clk 0:02:36]}  Ke8 {[%clk 0:02:44]} 11. e5 {[%clk 0:02:10]}  Ne7 {[%clk 0:02:37]} 12. Ne4 {[%clk 0:02:03]}  Nd5 {[%clk 0:02:36]} 13. Bg3 {[%clk 0:02:01]}  b5 {[%clk 0:02:36]} 14. Be2 {[%clk 0:01:56]}  Be7 {[%clk 0:02:34]} 15. Rhe1 {[%clk 0:01:54]}  h6 {[%clk 0:02:33]} 16. f4 {[%clk 0:01:52]}  g6 {[%clk 0:02:33]} 17. Bf3 {[%clk 0:01:50]}  Kf8 {[%clk 0:02:32]} 18. Nc3 {[%clk 0:01:38]}  a6 {[%clk 0:02:29]} 19. Nxd5 {[%clk 0:01:37]}  cxd5 {[%clk 0:02:29]} 20. Bxd5 {[%clk 0:01:38]}  Rd8 {[%clk 0:02:22]} 21. Bxe6 {[%clk 0:01:31]}  fxe6 {[%clk 0:02:23]} 22. Rxd8+ {[%clk 0:01:22]}  Bxd8 {[%clk 0:02:22]} 23. Rd1 {[%clk 0:01:23]}  Be7 {[%clk 0:02:23]} 24. Rd7 {[%clk 0:01:22]}  g5 {[%clk 0:02:16]} 25. Ra7 {[%clk 0:01:20]}  gxf4 {[%clk 0:02:16]} 26. Bxf4 {[%clk 0:01:20]}  Kf7 {[%clk 0:02:16]} 27. Rxa6 {[%clk 0:01:17]}  Bg5 {[%clk 0:02:09]} 28. g3 {[%clk 0:01:14]}  Bxf4+ {[%clk 0:02:09]} 29. gxf4 {[%clk 0:01:15]}  Rg8 {[%clk 0:02:07]} 30. Ra7+ {[%clk 0:01:13]}  Kg6 {[%clk 0:02:06]} 31. a4 {[%clk 0:01:08]}  bxa4 {[%clk 0:02:06]} 32. Rxa4 {[%clk 0:01:09]}  Kf5 {[%clk 0:02:06]} 33. Rxc4 {[%clk 0:01:09]}  Rg1+ {[%clk 0:02:01]} 34. Kc2 {[%clk 0:01:07]}  Rg2+ {[%clk 0:02:02]} 35. Kc3 {[%clk 0:01:07]}  Rxh2 {[%clk 0:02:03]} 36. b4 {[%clk 0:01:08]}  h5 {[%clk 0:02:04]} 37. b5 {[%clk 0:01:08]}  Rg2 {[%clk 0:02:02]} 38. b6 {[%clk 0:01:06]}  Rg8 {[%clk 0:02:02]} 39. b7 {[%clk 0:01:00]}  Rb8 {[%clk 0:02:02]} 40. Rc7 {[%clk 0:01:01]}  Kxf4 {[%clk 0:02:02]} 41. Kd4 {[%clk 0:01:02]}  h4 {[%clk 0:02:01]} 42. Rf7+ {[%clk 0:01:02]}  Kg5 {[%clk 0:02:02]} 43. Rh7 {[%clk 0:01:01]}  Kg6 {[%clk 0:01:56]} 44. Rxh4 {[%clk 0:00:51]}  Rxb7 {[%clk 0:01:53]} 45. Rf4 {[%clk 0:00:50]}  Rb4+ {[%clk 0:01:47]} 46. Ke3 {[%clk 0:00:49]}  Rxf4 {[%clk 0:01:47]} 47. Kxf4 {[%clk 0:00:50]}  Kh5 {[%clk 0:01:46]} 48. Ke3 {[%clk 0:00:45]}  Kg4 {[%clk 0:01:44]} 49. Kd4 {[%clk 0:00:45]}  Kf5 {[%clk 0:01:44]} 50. Kd3 {[%clk 0:00:45]}  Kf4 {[%clk 0:01:43]} 51. Kd4 {[%clk 0:00:45]}  Kf5 {[%clk 0:01:43]} 52. Kd3 {[%clk 0:00:46]}  Kxe5 {[%clk 0:01:39]} 53. Ke3 {[%clk 0:00:46]} 1/2-1/2


[Site "https://www.chess.com"]

[Event "Titled Tuesday Blitz October 31 Late 2023"]
[White "Tworuszka, Michal"]
[Black "Bauman_Guy"]
[WhiteFideId "1117858"]
[WhiteElo "2489"]
[BlackElo "2918"]
[Result "0-1"]
[Round "1"]
[TimeControl "180+1"]
[Date "2023.10.31"]
[WhiteClock "0:00:18"]
[BlackClock "0:01:10"]
[Board "22"]

1. e4 {[%clk 0:02:59]}  c5 {[%clk 0:02:59]} 2. Nf3 {[%clk 0:02:59]}  d6 {[%clk 0:03:00]} 3. d4 {[%clk 0:02:59]}  Nf6 {[%clk 0:03:00]} 4. Nc3 {[%clk 0:02:58]}  cxd4 {[%clk 0:03:00]} 5. Nxd4 {[%clk 0:02:59]}  a6 {[%clk 0:03:00]} 6. Bd3 {[%clk 0:02:56]}  e5 {[%clk 0:03:00]} 7. Nde2 {[%clk 0:02:55]}  Be7 {[%clk 0:02:59]} 8. O-O {[%clk 0:02:56]}  O-O {[%clk 0:02:59]} 9. Ng3 {[%clk 0:02:56]}  b5 {[%clk 0:02:59]} 10. a4 {[%clk 0:02:48]}  b4 {[%clk 0:02:58]} 11. Nd5 {[%clk 0:02:48]}  Nxd5 {[%clk 0:02:57]} 12. exd5 {[%clk 0:02:49]}  f5 {[%clk 0:02:57]} 13. f4 {[%clk 0:02:44]}  e4 {[%clk 0:02:57]} 14. Be2 {[%clk 0:02:44]}  Qb6+ {[%clk 0:02:55]} 15. Kh1 {[%clk 0:02:43]}  a5 {[%clk 0:02:55]} 16. b3 {[%clk 0:02:32]}  Ba6 {[%clk 0:02:41]} 17. Bb2 {[%clk 0:02:30]}  g6 {[%clk 0:02:37]} 18. Qd4 {[%clk 0:02:19]}  Qxd4 {[%clk 0:02:34]} 19. Bxd4 {[%clk 0:02:20]}  Nd7 {[%clk 0:02:34]} 20. Bxa6 {[%clk 0:02:18]}  Rxa6 {[%clk 0:02:35]} 21. Rf2 {[%clk 0:02:16]}  Bf6 {[%clk 0:02:31]} 22. Bxf6 {[%clk 0:02:12]}  Nxf6 {[%clk 0:02:32]} 23. Rd1 {[%clk 0:02:12]}  Rc8 {[%clk 0:02:33]} 24. Nf1 {[%clk 0:02:10]}  Rc3 {[%clk 0:02:31]} 25. Re2 {[%clk 0:02:07]}  Ra7 {[%clk 0:02:27]} 26. Ne3 {[%clk 0:02:05]}  Rac7 {[%clk 0:02:28]} 27. Nc4 {[%clk 0:02:03]}  R7xc4 {[%clk 0:02:27]} 28. bxc4 {[%clk 0:02:04]}  Rxc4 {[%clk 0:02:28]} 29. Kg1 {[%clk 0:01:39]}  Kf7 {[%clk 0:02:24]} 30. h3 {[%clk 0:01:36]}  h5 {[%clk 0:02:24]} 31. g3 {[%clk 0:01:34]}  Rc3 {[%clk 0:02:00]} 32. Kf2 {[%clk 0:01:27]}  Ra3 {[%clk 0:01:56]} 33. Ree1 {[%clk 0:01:26]}  Ke7 {[%clk 0:01:51]} 34. c4 {[%clk 0:00:49]}  bxc3 {[%clk 0:01:37]} 35. Ra1 {[%clk 0:00:48]}  Rxa1 {[%clk 0:01:34]} 36. Rxa1 {[%clk 0:00:49]}  Nxd5 {[%clk 0:01:35]} 37. Ke2 {[%clk 0:00:34]}  Nb4 {[%clk 0:01:21]} 38. Rc1 {[%clk 0:00:34]}  c2 {[%clk 0:01:21]} 39. Ke3 {[%clk 0:00:30]}  d5 {[%clk 0:01:21]} 40. Kd4 {[%clk 0:00:30]}  Kd6 {[%clk 0:01:21]} 41. h4 {[%clk 0:00:18]}  Kc6 {[%clk 0:01:10]} 0-1


[Site "https://www.chess.com"]